bitfinex/quotes_BTCUSD_20241202
["timestamp","ask_amount","ask_price","bid_price","bid_amount"]
[1733134912888,0.25304521,95277.0,95276.0,0.0008617]
[1733134915413,0.25204521,95277.0,95276.0,0.0008617]
[1733134916704,0.25376861,95277.0,95276.0,0.0008617]
[1733134921204,0.1509234,95277.0,95276.0,0.0008617]
[1733134921434,0.0520234,95277.0,95276.0,0.0008617]
[1733134922417,0.0017234,95277.0,95276.0,0.0008617]
[1733134922860,0.0017234,95277.0,95276.0,0.01480176]
[1733134923100,0.0017234,95277.0,95276.0,0.01580176]
[1733134923361,0.0017234,95277.0,95276.0,0.0018617]
[1733134928216,0.1308234,95277.0,95276.0,0.0018617]
[1733134928449,0.1298234,95277.0,95276.0,0.0018617]
[1733134929081,0.0510234,95277.0,95276.0,0.0018617]
[1733134929550,0.0027234,95277.0,95276.0,0.0018617]
[1733134929783,0.0007234,95277.0,95276.0,0.0018617]
[1733134937176,0.0486234,95277.0,95276.0,0.0018617]
[1733134940503,0.1244234,95277.0,95276.0,0.0018617]
[1733134947806,0.1474234,95277.0,95276.0,0.0018617]
[1733134948040,0.25026861,95277.0,95276.0,0.0018617]
[1733134948683,0.25026861,95277.0,95276.0,0.0008617]
[1733134949117,0.25326861,95277.0,95276.0,0.0008617]
[1733134949349,0.25026861,95277.0,95276.0,0.0008617]
[1733134949579,0.25226861,95277.0,95276.0,0.0008617]
[1733134950896,0.25726861,95277.0,95276.0,0.0008617]
[1733134951322,0.25526861,95277.0,95276.0,0.0018617]
[1733134951452,0.26326861,95277.0,95276.0,0.0018617]
[1733134951672,0.26126861,95277.0,95276.0,0.0008617]
[1733134951895,0.26726861,95277.0,95276.0,0.0018617]
[1733134952135,0.26426861,95277.0,95276.0,0.0018617]
[1733134952452,0.26826861,95277.0,95276.0,0.0018617]
[1733134955136,0.36826861,95277.0,95276.0,0.0018617]
[1733134955677,0.51826861,95277.0,95276.0,0.0018617]
[1733134956782,0.61826861,95277.0,95276.0,0.0018617]
[1733134957039,0.023,95252.0,95250.0,4e-05]
[1733134957285,0.12584521,95251.0,95250.0,4e-05]
[1733134957517,0.023,95251.0,95250.0,4e-05]
[1733134958472,0.023,95251.0,95250.0,0.00063719]
[1733134958696,0.023,95251.0,95250.0,0.00363719]
[1733134958944,0.023,95251.0,95250.0,0.00663719]
[1733134958945,0.1049,95251.0,95250.0,0.00663719]
[1733134959177,0.1514,95251.0,95250.0,0.00663719]
[1733134960079,0.1514,95251.0,95250.0,0.00363719]
[1733134960300,0.1514,95251.0,95250.0,0.00263719]
[1733134960522,0.1524,95251.0,95250.0,0.00263719]
[1733134960806,0.1524,95251.0,95250.0,0.00063719]
[1733134961514,0.1524,95251.0,95250.0,0.00149979]
[1733134961743,0.0475,95251.0,95250.0,0.00149979]
[1733134962019,0.001,95251.0,95250.0,0.00149979]
[1733134962716,0.001,95251.0,95250.0,0.01518067]
[1733134962937,0.001,95251.0,95250.0,0.00149979]
[1733134963795,0.023,95257.0,95251.0,0.209971]
[1733134964007,0.023,95257.0,95252.0,0.209969]
[1733134964416,0.0755,95258.0,95255.0,0.209961]
[1733134964640,0.023,95258.0,95255.0,0.209961]
[1733134965315,0.023,95258.0,95255.0,0.419923]
[1733134965522,0.0493,95259.0,95255.0,0.419923]
[1733134965764,0.0792,95266.0,95260.0,0.209949]
[1733134965963,0.0792,95266.0,95256.0,0.209958]
[1733134965964,0.0464,95264.0,95256.0,0.209958]
[1733134966181,0.0464,95264.0,95252.0,0.001]
[1733134966408,0.1273,95262.0,95252.0,0.001]
[1733134966636,0.232951,95260.0,95252.0,0.001]
[1733134967117,0.232951,95260.0,95250.0,0.00149979]
[1733134967542,0.023,95260.0,95250.0,0.00149979]
[1733134967826,0.37507147,95270.0,95250.0,0.00149979]
[1733134967827,0.0821,95275.0,95250.0,0.16664126]
[1733134968018,0.0007234,95277.0,95274.0,0.41984]
[1733134970217,0.0007234,95277.0,95275.0,0.209918]
[1733134971729,0.0007234,95277.0,95275.0,0.210918]
[1733134972605,0.0007234,95277.0,95275.0,0.22471352]
[1733134974525,0.0007234,95277.0,95275.0,0.001]
[1733134974793,0.0007234,95277.0,95275.0,0.210916]
[1733134975004,0.0007234,95277.0,95275.0,0.001]
[1733134975417,0.0007234,95277.0,95276.0,0.209916]
[1733134976129,0.0007234,95277.0,95275.0,0.001]
[1733134976576,0.0007234,95277.0,95276.0,0.209916]
[1733134976796,0.0007234,95277.0,95276.0,0.210916]
[1733134977009,0.0007234,95277.0,95276.0,0.001]
[1733134977224,0.0007234,95277.0,95273.0,0.209923]
[1733134977425,0.0007234,95277.0,95276.0,0.209916]
[1733134978094,0.0007234,95277.0,95276.0,0.210916]
[1733134980207,0.0007234,95277.0,95276.0,0.001]
[1733134980843,0.0469234,95277.0,95276.0,0.001]
[1733134981132,0.0699234,95277.0,95276.0,0.001]
[1733134982516,0.2798374,95277.0,95262.0,0.209947]
[1733134982735,0.023,95276.0,95262.0,0.209947]
[1733134983138,0.209918,95275.0,95261.0,0.209948]
[1733134983344,0.209923,95273.0,95261.0,0.01379178]
[1733134983568,0.023,95274.0,95261.0,0.209947]
[1733134983763,0.023,95276.0,95261.0,0.209947]
[1733134983989,0.023,95276.0,95264.0,0.20994]
[1733134984397,0.026,95276.0,95264.0,0.20994]
[1733134984603,0.209918,95275.0,95261.0,0.209947]
[1733134984809,0.023,95274.0,95258.0,0.209955]
[1733134985219,0.023,95272.0,95250.0,0.16664126]
[1733134985431,0.023,95274.0,95250.0,0.16664126]
[1733134985432,0.232934,95268.0,95250.0,0.00149979]
[1733134985635,0.20994,95265.0,95250.0,0.00149979]
[1733134985841,0.209945,95263.0,95250.0,0.01552384]
[1733134986048,0.209945,95263.0,95250.0,0.00149979]
[1733134986049,0.0805,95261.0,95250.0,0.00149979]
[1733134986252,0.290449,95261.0,95250.0,0.00149979]
[1733134986461,0.232957,95258.0,95250.0,0.00149979]
[1733134986661,0.023,95256.0,95250.0,0.00149979]
[1733134986873,0.10284521,95256.0,95255.0,0.0038626]
[1733134987073,0.12584521,95256.0,95255.0,0.0038626]
[1733134987276,0.12584521,95256.0,95255.0,0.0008626]
[1733134987505,0.12584521,95256.0,95255.0,0.0018626]
[1733134987707,0.33580521,95256.0,95255.0,0.0018626]
[1733134988112,0.41230521,95256.0,95255.0,0.0008626]
[1733134988313,0.41530521,95256.0,95255.0,0.0008626]
[1733134988934,0.46320521,95256.0,95255.0,0.0008626]
[1733134989150,0.46520521,95256.0,95255.0,0.0008626]
[1733134989371,0.46320521,95256.0,95255.0,0.0008626]
[1733134989791,0.46720521,95256.0,95255.0,0.0008626]
[1733134990233,0.81720521,95256.0,95255.0,0.0008626]
[1733134990454,0.81720521,95256.0,95250.0,0.00149979]
[1733134990455,0.4316,95251.0,95250.0,0.00149979]
[1733134990661,0.81731621,95251.0,95250.0,0.00149979]
[1733134991296,0.81731621,95251.0,95200.0,4e-05]
[1733134991297,0.1,95234.0,95200.0,4e-05]
[1733134991522,0.023,95205.0,95200.0,4e-05]
[1733134991960,0.233064,95209.0,95200.0,4e-05]
[1733134992405,0.023,95204.0,95200.0,4e-05]
[1733134992843,0.023,95207.0,95200.0,4e-05]
[1733134993054,0.02310648,95207.0,95200.0,4e-05]
[1733134993490,0.00010648,95207.0,95200.0,4e-05]
[1733134993739,0.001,95204.0,95200.0,4e-05]
[1733134993945,0.00010648,95207.0,95202.0,0.210079]
[1733134994358,0.00010648,95207.0,95202.0,0.420158]
[1733134994575,0.00010648,95207.0,95202.0,0.210079]
[1733134994782,0.00010648,95207.0,95202.0,0.420158]
[1733134995449,0.00310648,95207.0,95202.0,0.43448792]
[1733134995651,0.00010648,95207.0,95202.0,0.43448792]
[1733134996944,0.00010648,95207.0,95202.0,0.43535052]
[1733134997145,0.00010648,95207.0,95202.0,0.43935052]
[1733134997790,0.00010648,95207.0,95202.0,0.44135052]
[1733134998215,0.00010648,95207.0,95202.0,0.43935052]
[1733134998638,0.00010648,95207.0,95202.0,0.44135052]
[1733134998889,0.00010648,95207.0,95204.0,0.42015]
[1733134999108,0.00010648,95207.0,95206.0,0.21007]
[1733134999333,0.00010648,95207.0,95206.0,0.46477414]
[1733134999567,0.00010648,95207.0,95206.0,0.49501521]
[1733135000241,0.00010648,95207.0,95206.0,0.49901521]
[1733135000669,0.00010648,95207.0,95206.0,0.46691521]
[1733135001288,0.00010648,95207.0,95206.0,0.31691521]
[1733135001500,0.00010648,95207.0,95206.0,0.31291521]
[1733135001706,0.00110648,95207.0,95206.0,0.31991521]
[1733135001910,0.00210648,95207.0,95206.0,0.22507]
[1733135002119,0.00110648,95207.0,95206.0,0.21807]
[1733135002316,0.00010648,95207.0,95206.0,0.21007]
[1733135002520,0.00110648,95207.0,95206.0,0.21907]
[1733135002944,0.00110648,95207.0,95206.0,0.003]
[1733135003156,0.00210648,95207.0,95206.0,0.009]
[1733135003356,0.00010648,95207.0,95206.0,0.003]
[1733135004314,0.00010648,95207.0,95205.0,0.210071]
[1733135004722,0.00010648,95207.0,95206.0,0.003]
[1733135005080,0.00110648,95207.0,95206.0,0.005]
[1733135005274,0.00010648,95207.0,95206.0,0.33670426]
[1733135005472,0.00010648,95207.0,95206.0,0.33484521]
[1733135006327,0.00010648,95207.0,95206.0,0.34284521]
[1733135006564,0.00010648,95207.0,95206.0,0.33784521]
[1733135006996,0.00110648,95207.0,95206.0,0.34684521]
[1733135007622,0.00110648,95207.0,95206.0,0.34384521]
[1733135008066,0.00110648,95207.0,95206.0,0.34884521]
[1733135009182,0.00110648,95207.0,95206.0,0.33984521]
[1733135009183,0.00010648,95207.0,95206.0,0.33984521]
[1733135009383,0.00010648,95207.0,95206.0,0.33484521]
[1733135009580,0.00210648,95207.0,95206.0,0.34884521]
[1733135009812,0.00110648,95207.0,95206.0,0.33984521]
[1733135010022,0.00110648,95207.0,95206.0,0.34784521]
[1733135010244,0.00210648,95207.0,95206.0,0.34784521]
[1733135010472,0.0017258,95237.0,95236.0,0.210004]
[1733135010927,0.00183239,95237.0,95236.0,0.210004]
[1733135012105,0.00283239,95237.0,95236.0,0.210004]
[1733135012314,0.00283239,95237.0,95234.0,0.210008]
[1733135012537,0.023,95234.0,95214.0,0.15]
[1733135012799,0.098,95234.0,95211.0,0.15]
[1733135013060,0.098,95234.0,95220.0,0.210039]
[1733135013297,0.098,95234.0,95221.0,0.210036]
[1733135013546,0.098,95234.0,95221.0,0.210037]
[1733135013989,0.098,95234.0,95217.0,0.42009]
[1733135014216,0.210015,95231.0,95211.0,0.210058]
[1733135014434,0.17374521,95230.0,95211.0,0.210058]
[1733135014645,0.023,95223.0,95208.0,0.210065]
[1733135014870,0.023,95221.0,95214.0,0.001]
[1733135015139,0.023,95221.0,95208.0,0.210065]
[1733135015358,0.1274,95224.0,95208.0,0.210065]
[1733135015359,0.023,95223.0,95208.0,0.210065]
[1733135015620,0.210035,95222.0,95204.0,0.420148]
[1733135015893,0.023,95221.0,95208.0,0.210066]
[1733135016141,0.025,95221.0,95208.0,0.210066]
[1733135016380,0.1274,95224.0,95208.0,0.210066]
[1733135016381,0.023,95223.0,95208.0,0.210066]
[1733135016613,0.210035,95222.0,95208.0,0.210066]
[1733135016859,0.023,95221.0,95205.0,0.210073]
[1733135017307,0.025,95221.0,95209.0,0.210062]
[1733135017536,0.025,95221.0,95205.0,0.210073]
[1733135018020,0.023,95219.0,95203.0,0.210077]
[1733135018486,0.233042,95219.0,95203.0,0.420154]
[1733135018753,0.023,95219.0,95207.0,0.210068]
[1733135019453,0.028,95219.0,95207.0,0.210068]
[1733135020176,0.028,95219.0,95203.0,0.210077]
[1733135020177,0.210044,95218.0,95203.0,0.210077]
[1733135020401,0.023,95217.0,95203.0,0.0008632]
[1733135020654,0.023,95217.0,95203.0,0.2109402]
[1733135020884,0.210044,95218.0,95207.0,0.210068]
[1733135020885,0.023,95218.0,95207.0,0.210068]
[1733135021145,0.023,95216.0,95203.0,0.0008632]
[1733135021377,0.21005,95215.0,95203.0,0.0008632]
[1733135021627,0.023,95213.0,95203.0,0.0008632]
[1733135022335,0.023,95213.0,95204.0,0.210075]
[1733135022541,0.023,95213.0,95203.0,0.0008632]
[1733135022743,0.023,95213.0,95204.0,0.210074]
[1733135023419,0.023,95213.0,95203.0,0.0008632]
[1733135023820,0.025,95213.0,95203.0,0.0008632]
[1733135024232,0.023,95213.0,95204.0,0.210075]
[1733135024684,0.025,95213.0,95204.0,0.210075]
[1733135024935,0.024,95213.0,95204.0,0.210075]
[1733135025116,0.023,95213.0,95204.0,0.210075]
[1733135025349,0.024,95213.0,95208.0,0.210065]
[1733135025590,0.024,95213.0,95204.0,0.210075]
[1733135025798,0.026,95213.0,95208.0,0.210066]
[1733135025975,0.026,95213.0,95204.0,0.210075]
[1733135026913,0.026,95213.0,95203.0,0.0008632]
[1733135027353,0.023,95211.0,95203.0,0.0008632]
[1733135027778,0.023,95212.0,95203.0,0.0008632]
[1733135027984,0.023,95212.0,95204.0,0.210075]
[1733135028193,0.023,95213.0,95204.0,0.210075]
[1733135028400,0.027,95213.0,95203.0,0.0008632]
[1733135028803,0.025,95213.0,95204.0,0.210075]
[1733135029006,0.002,95212.0,95204.0,0.210075]
[1733135029208,0.023,95211.0,95204.0,0.210075]
[1733135029390,0.023,95211.0,95203.0,0.0008632]
[1733135030312,0.001,95212.0,95203.0,0.0002972]
[1733135030528,0.210059,95211.0,95203.0,0.0002972]
[1733135030737,0.023,95210.0,95203.0,0.0002972]
[1733135030961,0.210059,95211.0,95203.0,0.0002972]
[1733135030962,0.023,95208.0,95203.0,0.0002972]
[1733135031181,0.0489,95207.0,95203.0,0.0002972]
[1733135031402,0.023,95206.0,95203.0,0.0002972]
[1733135031914,0.1054,95204.0,95203.0,0.0002972]
[1733135032120,0.1543,95204.0,95203.0,0.0004762]
[1733135034295,0.1573,95204.0,95203.0,0.0004762]
[1733135035496,0.1593,95204.0,95203.0,0.0004762]
[1733135036895,0.0769,95204.0,95203.0,0.0004762]
[1733135037401,0.0749,95204.0,95203.0,0.0004762]
[1733135037637,0.0017264,95213.0,95208.0,0.210065]
[1733135037853,0.0017264,95213.0,95204.0,0.210075]
[1733135038371,0.0017264,95213.0,95207.0,0.210067]
[1733135038861,0.023,95212.0,95204.0,0.210075]
[1733135039290,0.023,95212.0,95203.0,0.0004762]
[1733135040133,0.210059,95211.0,95203.0,0.0004762]
[1733135040344,0.023,95210.0,95203.0,0.0004762]
[1733135040552,0.023,95208.0,95203.0,0.0004762]
[1733135040981,0.005,95212.0,95203.0,0.0004762]
[1733135040982,0.023,95210.0,95203.0,0.0004762]
[1733135041431,0.023,95211.0,95203.0,0.0004762]
[1733135041644,0.023,95212.0,95203.0,0.0004762]
[1733135041873,0.0781,95210.0,95203.0,0.0004762]
[1733135042111,0.023,95206.0,95203.0,0.0004762]
[1733135043427,0.023,95207.0,95203.0,0.0004762]
[1733135043638,0.023,95209.0,95203.0,0.0004762]
[1733135044059,0.023,95205.0,95203.0,0.0004762]
[1733135044488,0.023,95209.0,95203.0,0.0004762]
[1733135044737,0.003,95207.0,95203.0,0.0004762]
[1733135044958,0.023,95206.0,95203.0,0.0004762]
[1733135045403,0.023,95209.0,95203.0,0.0004762]
[1733135045646,0.0781,95210.0,95203.0,0.0004762]
[1733135045647,0.023,95204.0,95203.0,0.0004762]
[1733135047239,0.002,95206.0,95203.0,0.0004762]
[1733135047454,0.0454,95204.0,95203.0,0.0004762]
[1733135047671,0.17124521,95204.0,95203.0,0.0004762]
[1733135048093,0.17224521,95204.0,95203.0,0.0004762]
[1733135048761,0.17324521,95204.0,95203.0,0.0004762]
[1733135049396,0.25504521,95204.0,95203.0,0.0004762]
[1733135051325,0.40504521,95204.0,95203.0,0.0004762]
[1733135051544,0.483081,95201.0,95200.0,4e-05]
[1733135051763,0.71012621,95201.0,95200.0,0.00014648]
[1733135053927,0.72428305,95201.0,95200.0,0.00014648]
[1733135054134,0.73228305,95201.0,95200.0,0.00114648]
[1733135054549,0.63228305,95201.0,95200.0,0.00114648]
[1733135054761,0.61812621,95201.0,95200.0,0.00114648]
[1733135054977,0.72095767,95201.0,95200.0,0.00214648]
[1733135055187,0.62612621,95201.0,95200.0,0.00214648]
[1733135055408,0.60312621,95201.0,95200.0,0.00214648]
[1733135056061,0.360097,95194.0,95180.0,0.0008622]
[1733135056290,0.51254221,95194.0,95193.0,0.00104173]
[1733135057361,0.52654221,95194.0,95193.0,0.00304173]
[1733135057832,0.60284221,95194.0,95193.0,0.00304173]
[1733135058048,0.62584221,95194.0,95193.0,0.00304173]
[1733135059092,0.64151168,95194.0,95193.0,0.00304173]
[1733135062159,0.62584221,95194.0,95193.0,0.00304173]
[1733135063673,0.2366,95194.0,95193.0,0.00304173]
[1733135063858,0.0866,95194.0,95193.0,0.00304173]
[1733135064317,0.0636,95194.0,95193.0,0.00304173]
[1733135065573,0.0636,95194.0,95180.0,0.0008622]
[1733135065574,0.15,95181.0,95180.0,0.0008622]
[1733135065780,0.25284521,95181.0,95180.0,0.0008622]
[1733135067031,0.25584521,95181.0,95180.0,0.0008622]
[1733135067456,0.28384521,95181.0,95180.0,0.0008622]
[1733135067670,0.41384521,95181.0,95180.0,0.0008622]
[1733135068744,0.36667667,95181.0,95180.0,0.0008622]
[1733135069434,0.26384521,95181.0,95180.0,0.0008622]
[1733135069648,0.18154521,95181.0,95180.0,0.0008622]
[1733135087590,0.1,95174.0,95173.0,0.0001626]
[1733135087820,0.41298621,95174.0,95173.0,0.0001626]
[1733135088052,0.53808621,95174.0,95173.0,0.0001626]
[1733135089754,0.57208621,95174.0,95173.0,0.0011626]
[1733135089999,0.47208621,95174.0,95173.0,0.0011626]
[1733135091237,0.18304521,95174.0,95173.0,0.0011626]
[1733135092430,0.26174521,95174.0,95173.0,0.0011626]
[1733135101775,0.13684521,95174.0,95173.0,0.0011626]
[1733135102237,0.034,95174.0,95173.0,0.0011626]
[1733135102450,0.011,95174.0,95173.0,0.0011626]
[1733135103327,0.004,95174.0,95173.0,0.0001626]
[1733135103544,0.004,95174.0,95173.0,0.0011626]
[1733135103755,0.034,95174.0,95173.0,0.0011626]
[1733135103969,0.26214521,95174.0,95173.0,0.0011626]
[1733135104184,0.25814521,95174.0,95173.0,0.0011626]
[1733135104394,0.34757253,95174.0,95173.0,0.0011626]
[1733135104602,0.35157253,95174.0,95173.0,0.0011626]
[1733135104827,0.25514521,95174.0,95173.0,0.0001626]
[1733135105057,0.25114521,95174.0,95173.0,0.0001626]
[1733135105269,0.25614521,95174.0,95173.0,0.0001626]
[1733135105476,0.25514521,95174.0,95173.0,0.0001626]
[1733135105901,0.26214521,95174.0,95173.0,0.0011626]
[1733135106547,0.18554521,95174.0,95173.0,0.0011626]
[1733135106801,0.13684521,95174.0,95173.0,0.0011626]
[1733135107021,0.011,95174.0,95173.0,0.0011626]
[1733135108106,0.004,95174.0,95173.0,0.0001626]
[1733135108324,0.027,95174.0,95173.0,0.0001626]
[1733135108536,0.024,95174.0,95173.0,0.0001626]
[1733135108754,0.004,95174.0,95173.0,0.0001626]
[1733135109040,0.027,95174.0,95173.0,0.0001626]
[1733135110867,0.001,95174.0,95173.0,0.0001626]
[1733135111121,0.002,95174.0,95173.0,0.0001626]
[1733135111349,0.025,95174.0,95173.0,0.0001626]
[1733135111852,0.023,95180.0,95179.0,0.21013]
[1733135112721,0.023,95180.0,95179.0,0.28983]
[1733135113199,0.001725,95181.0,95179.0,0.28983]
[1733135113426,0.001725,95181.0,95180.0,0.00185939]
[1733135113856,0.001725,95181.0,95179.0,0.29083]
[1733135114553,0.023,95180.0,95179.0,0.001]
[1733135114770,0.023,95180.0,95179.0,0.01516405]
[1733135114978,0.023,95180.0,95179.0,0.002]
[1733135115187,0.023,95180.0,95173.0,0.0001626]
[1733135115188,0.023,95180.0,95176.0,0.210136]
[1733135115683,0.024725,95180.0,95179.0,0.001]
[1733135115898,0.024725,95180.0,95176.0,0.420272]
[1733135116355,0.024725,95180.0,95173.0,0.0001626]
[1733135116787,0.0456,95179.0,95173.0,0.0001626]
[1733135117028,0.023,95178.0,95173.0,0.0001626]
[1733135118351,0.023,95176.0,95173.0,0.0001626]
[1733135118586,0.233137,95176.0,95173.0,0.0001626]
[1733135119633,0.024,95176.0,95173.0,0.0001626]
[1733135120506,0.001,95176.0,95173.0,0.0001626]
[1733135120725,0.023,95178.0,95173.0,0.0001626]
[1733135121209,0.0456,95179.0,95173.0,0.0001626]
[1733135121210,0.023,95175.0,95173.0,0.0001626]
[1733135121894,0.003,95176.0,95173.0,0.0001626]
[1733135121895,0.001,95176.0,95173.0,0.0001626]
[1733135122319,0.023,95178.0,95173.0,0.0001626]
[1733135122737,0.026,95178.0,95173.0,0.0001626]
[1733135123881,0.002,95178.0,95173.0,0.0001626]
[1733135124317,0.023,95175.0,95173.0,0.0001626]
[1733135124569,0.002,95178.0,95173.0,0.0001626]
[1733135124570,0.023,95177.0,95173.0,0.0001626]
[1733135124785,0.002,95178.0,95173.0,0.0001626]
[1733135124786,0.023,95175.0,95173.0,0.0001626]
[1733135125425,0.023,95177.0,95173.0,0.0001626]
[1733135125635,0.001,95175.0,95173.0,0.0001626]
[1733135125844,0.002,95175.0,95173.0,0.0001626]
[1733135126507,0.023,95174.0,95173.0,0.0001626]
[1733135126994,0.001,95175.0,95173.0,0.0001626]
[1733135127609,0.023,95176.0,95173.0,0.0001626]
[1733135127816,0.023,95178.0,95173.0,0.0001626]
[1733135128024,0.001,95174.0,95173.0,0.0001626]
[1733135128271,0.023,95174.0,95173.0,0.0001626]
[1733135128489,0.002,95175.0,95173.0,0.0001626]
[1733135128697,0.001,95175.0,95173.0,0.0001626]
[1733135128901,0.025,95178.0,95173.0,0.0001626]
[1733135129148,0.001,95174.0,95173.0,0.0001626]
[1733135129818,0.0706,95174.0,95173.0,0.0001626]
[1733135130039,0.17344521,95174.0,95173.0,0.0001626]
[1733135130956,0.17244521,95174.0,95173.0,0.0001626]
[1733135131439,0.0706,95174.0,95173.0,0.0001626]
[1733135131659,0.02932658,95174.0,95173.0,0.0001626]
[1733135131875,0.03363964,95174.0,95173.0,0.0001626]
[1733135135208,0.03147973,95174.0,95173.0,0.0001626]
[1733135135724,0.03365071,95174.0,95173.0,0.0001626]
[1733135140060,0.025,95174.0,95173.0,0.0001626]
[1733135140528,0.001,95174.0,95173.0,0.0001626]
[1733135140751,0.023,95179.0,95173.0,0.0001626]
[1733135141259,0.023,95177.0,95173.0,0.0001626]
[1733135141741,0.0064952,95176.0,95173.0,0.0001626]
[1733135141963,0.023,95175.0,95173.0,0.0001626]
[1733135142421,0.026,95179.0,95173.0,0.0001626]
[1733135142917,0.023,95177.0,95173.0,0.0001626]
[1733135143131,0.023,95177.0,95169.0,0.21015]
[1733135143348,0.005,95179.0,95170.0,0.210149]
[1733135143565,0.0064952,95176.0,95170.0,0.210149]
[1733135143789,0.210132,95178.0,95165.0,0.22445854]
[1733135144042,0.1282,95177.0,95165.0,0.01429954]
[1733135144311,0.1376952,95177.0,95160.0,0.2120308]
[1733135144525,0.1376952,95177.0,95163.0,0.01401811]
[1733135144526,0.210145,95173.0,95163.0,0.01401811]
[1733135144735,0.1346952,95177.0,95159.0,0.0008622]
[1733135144736,0.210139,95175.0,95161.0,0.210168]
[1733135144961,0.13686026,95177.0,95159.0,0.002722]
[1733135144962,0.0064952,95172.0,95164.0,0.210161]
[1733135145181,0.023,95175.0,95162.0,0.210167]
[1733135145429,0.023,95170.0,95162.0,0.210167]
[1733135145922,0.00866027,95169.0,95162.0,0.210166]
[1733135146142,0.023,95168.0,95162.0,0.20131604]
[1733135146362,0.023,95174.0,95162.0,0.20131604]
[1733135146781,0.002,95175.0,95162.0,0.20131604]
[1733135146782,0.023,95172.0,95162.0,0.20131604]
[1733135147036,0.023,95172.0,95160.0,0.00185981]
[1733135147037,0.023,95172.0,95165.0,0.210159]
[1733135147288,0.001,95173.0,95169.0,0.21015]
[1733135147839,0.023,95179.0,95166.0,0.210158]
[1733135147840,0.023,95179.0,95173.0,0.210143]
[1733135148091,0.001,95174.0,95173.0,0.210143]
[1733135149389,0.002,95174.0,95173.0,0.210143]
[1733135149613,0.001,95174.0,95173.0,0.210143]
[1733135149841,0.001,95174.0,95173.0,0.21200257]
[1733135150090,0.001,95174.0,95173.0,0.31484778]
[1733135150282,0.001,95174.0,95173.0,0.31298821]
[1733135150750,0.002,95174.0,95173.0,0.31298821]
[1733135151227,0.047,95191.0,95179.0,0.21013]
[1733135151485,0.024725,95180.0,95179.0,0.2119894]
[1733135152704,0.024725,95180.0,95179.0,0.2149894]
[1733135153922,0.024725,95180.0,95179.0,0.0018594]
[1733135154145,0.024725,95180.0,95173.0,0.003]
[1733135154146,0.023,95179.0,95173.0,0.210142]
[1733135154601,0.023,95179.0,95173.0,0.22412636]
[1733135155085,0.023,95179.0,95175.0,0.210139]
[1733135155337,0.023,95179.0,95176.0,0.00328558]
[1733135155587,0.024,95179.0,95177.0,0.00328558]
[1733135155805,0.024,95179.0,95178.0,0.00328558]
[1733135155806,0.023,95179.0,95178.0,0.00328558]
[1733135156510,0.0687,95179.0,95178.0,0.00328558]
[1733135156738,0.0697,95179.0,95178.0,0.00328558]
[1733135156982,0.0697,95179.0,95162.0,0.0008625]
[1733135157215,0.279831,95179.0,95165.0,0.01369024]
[1733135157466,0.0687,95179.0,95166.0,0.210159]
[1733135157700,0.0707,95179.0,95166.0,0.210159]
[1733135157931,0.0697,95179.0,95170.0,0.210149]
[1733135158186,0.0687,95179.0,95167.0,0.210156]
[1733135158407,0.0707,95179.0,95174.0,0.210139]
[1733135158637,0.024,95179.0,95177.0,0.210132]
[1733135158865,0.025,95179.0,95177.0,0.210132]
[1733135159811,0.024,95179.0,95177.0,0.210132]
[1733135160374,0.025,95179.0,95177.0,0.210132]
[1733135160548,0.024,95179.0,95178.0,0.00185956]
[1733135160772,0.023,95179.0,95178.0,0.00185956]
[1733135161743,0.023,95179.0,95178.0,0.10570477]
[1733135161978,0.023,95179.0,95178.0,0.12001237]
[1733135162205,0.023,95179.0,95178.0,0.10870477]
[1733135162434,0.001725,95180.0,95179.0,0.21013]
[1733135162683,0.001725,95180.0,95179.0,0.31483443]
[1733135162950,0.001725,95180.0,95179.0,0.31297521]
[1733135163673,0.024725,95180.0,95179.0,0.31597521]
[1733135163909,0.024725,95180.0,95179.0,0.003]
[1733135164633,0.024725,95180.0,95179.0,0.002]
[1733135165880,0.03344682,95180.0,95179.0,0.002]
[1733135166100,0.03344274,95180.0,95179.0,0.002]
[1733135166318,0.024725,95180.0,95179.0,0.002]
[1733135166988,0.024725,95180.0,95179.0,0.003]
[1733135169166,0.073925,95180.0,95179.0,0.003]
[1733135169865,0.08265473,95180.0,95179.0,0.003]
[1733135170081,0.0804723,95180.0,95179.0,0.003]
[1733135171077,0.2906003,95180.0,95179.0,0.003]
[1733135171288,0.29278322,95180.0,95179.0,0.003]
[1733135171508,0.2906003,95180.0,95179.0,0.003]
[1733135171752,0.0826555,95180.0,95179.0,0.003]
[1733135172001,0.08046466,95180.0,95179.0,0.003]
[1733135172213,0.08264454,95180.0,95179.0,0.003]
[1733135173859,0.08046466,95180.0,95179.0,0.003]
[1733135174335,0.08264268,95180.0,95179.0,0.003]
[1733135174754,0.08046326,95180.0,95179.0,0.003]
[1733135176181,0.08264711,95180.0,95179.0,0.003]
[1733135176895,0.29277511,95180.0,95179.0,0.003]
[1733135177153,0.08264711,95180.0,95179.0,0.003]
[1733135178114,0.073925,95180.0,95179.0,0.003]
[1733135178339,0.08264848,95180.0,95179.0,0.003]
[1733135179009,0.08264848,95180.0,95179.0,0.00485945]
[1733135179010,0.01044848,95180.0,95179.0,0.00485945]
[1733135179241,0.01044848,95180.0,95179.0,0.10584521]
[1733135179464,0.001725,95180.0,95179.0,0.10770452]
[1733135179820,0.001725,95180.0,95179.0,0.37190452]
[1733135180038,0.0017266,95193.0,95192.0,0.210101]
[1733135180661,0.0017266,95193.0,95192.0,0.21196015]
[1733135181330,0.0017266,95193.0,95192.0,0.21696015]
[1733135181500,0.0017266,95193.0,95192.0,0.218101]
[1733135181921,0.0247266,95193.0,95192.0,0.008]
[1733135182376,0.0247266,95193.0,95192.0,0.02213333]
[1733135182581,0.0247266,95193.0,95192.0,0.008]
[1733135182793,0.15411602,95193.0,95192.0,0.003]
[1733135183024,0.15411602,95193.0,95182.0,0.0018593]